Cogmind - Beta 15 @@@ ROGUE MODE // 2025.06.03 @ 01:36:18 Player: Mogwok Wargfriend Result: Destroyed by NT-5HC(R) with Subdweller Machine Gun Performance ------------- Evolutions (0) 0 Regions Visited (3) 600 Robots Destroyed (33) 165 Value Destroyed (903) 903 Prototype IDs (0) 0 Alien Tech Used (0) 0 Bonus (0) 0 TOTAL SCORE: 1668 Bonus ------- None Cogmind --------- Core Integrity 0/250 Matter 298/300 Energy 256/265 System Corruption 0% Temperature Cool (0) Movement Walking (120) Location -10/Subcaves Parts ------- > --- POWER (1) -------- Improved Ion Engine > --- PROPULSION (2) --- Aluminum Leg Aluminum Leg > --- UTILITY (2) ------ Small Storage Unit Signal Interpreter > --- WEAPON (2) ------- Small Laser Subdweller Machine Gun > --- INVENTORY (8) ---- Aluminum Leg Compact Wheel Medium Matter Pod (100) Sensor Array Assault Rifle Mini Grenade Launcher Makeshift Axe Peak State ------------ > --- POWER ------------ Improved Ion Engine > --- PROPULSION ------- Aluminum Leg Aluminum Leg > --- UTILITY ---------- Small Storage Unit Improved Terrain Scanner > --- WEAPON ----------- Light EM Pulse Cannon Assault Rifle > --- INVENTORY -------- Improved Ion Engine Wheel Compact Wheel Assault Rifle Assault Rifle Mini Grenade Launcher Mini Grenade Launcher [Rating: 12] Favorites ----------- Power Improved Ion Engine Engine Improved Ion Engine Propulsion Aluminum Leg Leg Aluminum Leg Utility Small Storage Unit Device Improved Terrain Scanner Storage Small Storage Unit Processor Signal Interpreter Weapon Assault Rifle Energy Gun Small Laser Energy Cannon Light EM Pulse Cannon Ballistic Gun Assault Rifle Launcher Mini Grenade Launcher Special Weapon Mining Laser Build | -11 -10 -10 -10 ------- Run | Yrd Mat Min Sub Slots Evolved . | . . . . Power . | . . . . Propulsion . | . . . . Utility . | . . . . Weapon . | . . . . Parts Attached 22 | 6 7 8 1 Power 3 | 1 1 1 . Engine 3 | 1 1 1 . Core . | . . . . Reactor . | . . . . Propulsion 6 | 2 2 2 . Treads . | . . . . Leg 6 | 2 2 2 . Wheel . | . . . . Hover . | . . . . Flight . | . . . . Utility 5 | 2 . 3 . Device 2 | 1 . 1 . Storage 2 | 1 . 1 . Processor 1 | . . 1 . Hackware . | . . . . Protection . | . . . . Artifact . | . . . . Weapon 8 | 1 4 2 1 Energy Gun 1 | . . 1 . Energy Cannon 1 | . 1 . . Ballistic Gun 4 | 1 2 . 1 Ballistic Cannon . | . . . . Launcher 1 | . 1 . . Special Weapon 1 | . . 1 . Impact Weapon . | . . . . Slashing Weapon . | . . . . Piercing Weapon . | . . . . Special Melee Weapon . | . . . . Unidentified Prototypes . | . . . . Parts Lost 7 | . 1 5 1 Power 1 | . . 1 . Propulsion 2 | . 1 1 . Utility 1 | . . 1 . Weapon 3 | . . 2 1 Highest Loss Streak 2 | . 1 2 1 To Critical Strikes . | . . . . Average Backups 7 | 3 7 7 7 Power . | . 1 . . Propulsion 1 | 1 1 . 2 Utility 1 | . 1 2 2 Weapon 3 | 1 2 3 3 Tool/Special . | . . . . Unused Backups 10 | . 3 . 7 Power 1 | . 1 . . Propulsion 4 | . 2 . 2 Utility 2 | . . . 2 Weapon 3 | . . . 3 Tool/Special . | . . . . Average Slot Usage (%) 99 | . 99 98 99 Engine 13 | . 14 13 14 Leg 27 | . 28 27 28 Device 7 | . 14 2 . Storage 14 | . 14 14 14 Processor 6 | . . 10 14 Energy Gun 4 | . . 3 14 Ballistic Gun 13 | . 20 10 4 Launcher 9 | . 7 12 9 Peak Build Rating 12 | 8 12 12 10 Average Rating 10 | 4 11 9 9 On Entrance 7 | . 8 12 10 Naked Turns . | . . . . Heaviest Build 19 | 13 19 16 17 Greatest Support 20 | 20 20 20 20 Greatest Overweight (x) 2 | 2 . 1 . Average Overweight (x) . | . . . . Largest Inventory Capacity 8 | 8 8 8 8 Average Capacity 7 | 7 8 8 8 Most Carried 8 | 5 8 8 8 Average Carried 7 | 3 7 7 7 Final Capacity 8 | 8 8 8 8 Final Carried 8 | 5 8 8 7 Class Distribution -------------------- 77% | Mutant 22% | Scavenger-Mutant Dominant Class ---------------- Mutant | -10/Materials Mutant | -10/Mines Scavenger-Mutant | -10/Subcaves Resources | -11 -10 -10 -10 ----------- Run | Yrd Mat Min Sub Matter Collected 1029 | 296 282 434 17 Remotely . | . . . . Salvage Created 773 | 77 319 358 19 Parts 48 | 5 17 24 2 Haulers Intercepted . | . . . . Recyclers Shooed 1 | . 1 . . Parts Field Recycled . | . . . . Retrieved Matter . | . . . . Parts Self-Destructed 9 | . . . 9 Prevented . | . . . . Kills | -11 -10 -10 -10 ------- Run | Yrd Mat Min Sub Combat Hostiles Destroyed 24 | . 9 14 1 Guns 9 | . 5 3 1 AOE 15 | . 4 11 . Classes Destroyed 8 | 2 4 1 1 Worker 3 | . 2 1 . Tunneler 1 | 1 . . . Recycler 2 | 1 . 1 . Operator 1 | . 1 . . Watcher 2 | . 2 . . Swarmer 6 | . . 6 . Grunt 17 | . 9 8 . Subdweller 1 | . . . 1 Best Kill Streak 4 | 2 3 4 1 Combat Bots Only 3 | . 2 3 1 Max Kills in Single Turn 3 | 1 2 3 1 Gunslinging . | . . . . Exploded 2 | . 2 2 . Melee . | . . . . Uniques/NPCs Destroyed . | . . . . Combat | -11 -10 -10 -10 -------- Run | Yrd Mat Min Sub Hostile Shots Fired 94 | . 47 41 6 Missed 19 | . 9 9 1 Hits 75 | . 38 32 5 Projectile 75 | . 38 32 5 Damage Taken 1112 | . 535 406 171 Core 256 | . 127 77 52 Absorbed by Shields . | . . . . Core Remaining (%) 100 | 100 . . . Volleys Fired 87 | 12 39 33 3 Largest 2 | 1 2 2 2 Hottest 100 | 20 50 100 70 Shots Fired 134 | 12 70 46 6 Gun 97 | 12 57 23 5 Cannon . | . . . . Launcher 28 | . 13 14 1 Special 9 | . . 9 . Kinetic 92 | 12 57 21 2 Thermal 14 | . . 11 3 Explosive 28 | . 13 14 1 Electromagnetic . | . . . . Robot Hit Streak 10 | 5 10 7 5 Robot Miss Streak 6 | 4 6 2 1 Penetration Max . | . . . . Secondary Targets . | . . . . Shots Hit Robots 75 | 7 40 23 5 Core Hits 46 | 3 20 21 2 Critical Kills . | . . . . Critical Parts Destroyed . | . . . . Critical Strikes . | . . . . Melee Attacks . | . . . . Impact . | . . . . Slashing . | . . . . Piercing . | . . . . Sneak Attacks . | . . . . Combat Hostiles . | . . . . Follow-up Attacks . | . . . . Damage Inflicted 2366 | 107 1062 1088 109 Guns 764 | 103 403 192 66 Cannons . | . . . . Explosions 1598 | . 659 896 43 Melee . | . . . . Ramming 4 | 4 . . . Kinetic 731 | 103 403 181 44 Thermal 110 | . . 88 22 Explosive 1521 | . 659 819 43 Electromagnetic . | . . . . Impact . | . . . . Slashing . | . . . . Piercing . | . . . . Highest Corruption . | . . . . Average Corruption . | . . . . Corruption Purged . | . . . . Corruption Blocked . | . . . . Overload Shots . | . . . . Overflow Damage 91 | . 41 17 33 Projectiles . | . . . . Explosions 91 | . 41 17 33 Melee . | . . . . Knockbacks . | . . . . Impact . | . . . . Kinetic . | . . . . Secondary . | . . . . Self-Inflicted Damage 143 | . 83 19 41 Shots 8 | . 5 2 1 Rammed . | . . . . Targets Rammed 1 | 1 . . . Kicked 1 | 1 . . . Crushed . | . . . . Highest Temperature 148 | . 15 148 . Average Temperature 41 | . 6 51 . Received Heat Transfer 501 | . 255 210 36 Siege Activations . | . . . . Martial Activations . | . . . . Shielding Activations . | . . . . Robots Disrupted . | . . . . Combat Hostiles . | . . . . Robots Corrupted . | . . . . Combat Hostiles . | . . . . Parts Fried . | . . . . Impact Corruptions . | . . . . Robots Melted . | . . . . Combat Hostiles . | . . . . Parts Melted . | . . . . Heat Transferred 175 | . . 125 50 Parts Sabotaged . | . . . . Parts Stolen . | . . . . Parts Stripped . | . . . . Power Chain Reactions . | . . . . Alert | -11 -10 -10 -10 ------- Run | Yrd Mat Min Sub Maximum Alert Level 1 | . . 1 . Low Security (%) 98 | 100 100 95 . Level 1 1 | . . 4 . Level 2 . | . . . . Level 3 . | . . . . Level 4 . | . . . . Level 5 . | . . . . High Security . | . . . . Max Security . | . . . . Peak Influence 209 | 5 179 209 . Initial 67 | . . 67 . Average 75 | 1 70 92 . Influence Increases 1016 | 10 513 493 . Destroy 0b10 Robot/C 460 | . 180 280 . Destroy 0b10 Robot/NC 45 | 10 25 10 . Destroy Leader 94 | . 54 40 . Successful Hack 36 | . 36 . . Disable Machine 135 | . 60 75 . Destroy Structure 186 | . 98 88 . Lose Combat Pursuer 60 | . 60 . . Influence Decreases 1016 | 10 340 505 161 Entered New Map 191 | . . 106 85 Time Decay 765 | 10 330 349 76 Lost Part 60 | . 10 50 . Squads Dispatched 2 | . 2 . . Investigation 1 | . 1 . . Extermination . | . . . . Reinforcement 1 | . 1 . . Assault . | . . . . Garrison . | . . . . Intercept . | . . . . Searches Triggered . | . . . . Construction Impeded . | . . . . Haulers Reinforced . | . . . . Active Scanning Responses . | . . . . Cargo Convoy Interrupts . | . . . . Stealth | -11 -10 -10 -10 --------- Run | Yrd Mat Min Sub Distress Signals 1 | . 1 . . Communications Jammed . | . . . . Distress Signals . | . . . . Times Spotted 33 | . 17 13 3 Peak Tracking Total 5 | . 5 3 2 Tactical Retreats 2 | . 2 . . Traps | -11 -10 -10 -10 ------- Run | Yrd Mat Min Sub Traps Triggered . | . . . . Indirectly . | . . . . Trap Hack Attempts . | . . . . Triggered . | . . . . Disarmed . | . . . . Reprogrammed . | . . . . Reused . | . . . . Traps Extracted . | . . . . Installed . | . . . . Triggered . | . . . . Machines | -11 -10 -10 -10 ---------- Run | Yrd Mat Min Sub Machines Disabled 9 | . 4 5 . Max in Single Turn 5 | . 1 5 . Machines Repaired . | . . . . Machines Dismantled . | . . . . Machines Sabotaged . | . . . . Overloaded Fab Kills . | . . . . Hacking | -11 -10 -10 -10 --------- Run | Yrd Mat Min Sub Machines Accessed 6 | . 6 . . Terminals 6 | . 6 . . Fabricators . | . . . . Repair Stations . | . . . . Recycling Units . | . . . . Scanalyzers . | . . . . Garrison Access . | . . . . Total Hacks 20 | . 20 . . Successful 8 | . 8 . . Failed 12 | . 12 . . Catastrophic 3 | . 3 . . Database Lockouts . | . . . . Manual 19 | . 19 . . Terminals 20 | . 20 . . Fabricators . | . . . . Repair Stations . | . . . . Recycling Units . | . . . . Scanalyzers . | . . . . Garrison Access . | . . . . Terminal Hacks 6 | . 6 . . Record 1 | . 1 . . Robot Analysis 3 | . 3 . . Terminal Index 1 | . 1 . . Locate Traps 1 | . 1 . . Fabricator Hacks . | . . . . Repair Station Hacks . | . . . . Recycling Unit Hacks . | . . . . Scanalyzer . | . . . . Garrison Access Hacks . | . . . . Unauthorized Hacks 2 | . 2 . . Terminals 2 | . 2 . . Operators 2 | . 2 . . Fabricators . | . . . . Repair Stations . | . . . . Recycling Units . | . . . . Scanalyzers . | . . . . Garrison Access . | . . . . Data Cores Recovered . | . . . . Used . | . . . . Hacking Detections 6 | . 6 . . Full Trace Events 1 | . 1 . . Feedback Events . | . . . . Feedback Blocked . | . . . . Robot Schematics Acquired . | . . . . Robots Built . | . . . . Authchips . | . . . . Time . | . . . . Total Robot Build Rating . | . . . . Part Schematics Acquired . | . . . . Parts Built . | . . . . Authchips . | . . . . Time . | . . . . Total Part Build Rating . | . . . . Parts Repaired . | . . . . Time . | . . . . Parts Recycled . | . . . . Recycled Matter . | . . . . Retrieved Matter . | . . . . Retrieved Components . | . . . . Parts Scanalyzed . | . . . . Part Schematics Acquired . | . . . . Parts Damaged . | . . . . Bothacking | -11 -10 -10 -10 ------------ Run | Yrd Mat Min Sub Used RIF Installer . | . . . . Robots Hacked . | . . . . Non-combat . | . . . . Combat . | . . . . Robot Hacks Applied . | . . . . Relay Couplers Released . | . . . . Fabnet Peak Effective % . | . . . . Robots Rewired . | . . . . Allies Hacked . | . . . . Hacks Repelled . | . . . . Allies | -11 -10 -10 -10 -------- Run | Yrd Mat Min Sub Total Allies . | . . . . Largest Group . | . . . . Highest-Rated Group . | . . . . Highest-Rated Ally . | . . . . Total Orders . | . . . . Ally Attacks . | . . . . Total Damage . | . . . . Kills . | . . . . Allies Corrupted . | . . . . Allies Melted . | . . . . Intel | -11 -10 -10 -10 ------- Run | Yrd Mat Min Sub Active Infowar (turns) 1231 | 20 1051 160 . Sensors 143 | . . 143 . Terrain 1088 | 20 1051 17 . Robot Analysis Total 3 | . 3 . . Derelict Logs Recovered 1 | . . 1 . Drone Launches . | . . . . Drone Recoveries . | . . . . Exploration | -11 -10 -10 -10 ------------- Run | Yrd Mat Min Sub Turns Passed 2508 | 117 1051 865 475 Spaces Moved 1626 | 65 561 616 384 Core 16 | 16 . . . Treads . | . . . . Legs 1610 | 49 561 616 384 Wheels . | . . . . Hover . | . . . . Flight . | . . . . Fastest Speed 50 | 50 120 120 120 Average Speed 119 | 107 120 121 120 Slowest Speed 190 | 150 120 190 120 Overloaded Moves . | . . . . Propulsion Burnouts . | . . . . Robots Hopped . | . . . . Potential Cave-ins . | . . . . Cave-ins Triggered . | . . . . Exploration Rate (%) 51 | 4 76 99 28 Regions Visited 3 Branch Regions 2 Pre-discovered Areas . | . . . . Known Exits Taken 1 | . . 1 . Unknown Exits Taken 2 | 1 1 . . Scrap Searched 5 | . . 2 3 Spaces Dug . | . . . . Terrain Destroyed 258 | . 105 137 16 Melee . | . . . . Projectile . | . . . . AOE 258 | . 105 137 16 Terrain Rammed . | . . . . Walls Destroyed . | . . . . Machines Disabled . | . . . . Actions | -11 -10 -10 -10 --------- Run | Yrd Mat Min Sub Total 2037 | 97 871 673 396 Wait 268 | 9 248 7 4 Move 1624 | 65 560 615 384 Hop . | . . . . Pick Up 19 | 5 9 3 2 Fast Attach 9 | 6 1 2 . Attach 10 | . 3 6 1 Detach 4 | . 1 3 . Swap 5 | . 3 2 . Drop 11 | . 7 2 2 Fire 87 | 12 39 33 3 Melee . | . . . . Ram . | . . . . Kick . | . . . . Crush . | . . . . Escape Stasis . | . . . . Rewire . | . . . . Trap . | . . . . Miscellaneous . | . . . . Route ------- -11/Scrapyard -10/Materials (discovered 3 exits: *Mat / [*Min] / Sub) -10/Mines (discovered 4 exits: *Mat x2 / *Exi / *Sub) -10/Subcaves (discovered 1 exit: *Mat) History --------- Turn | Location | Event 19 | -11/Scrapyard | Discovered new exit (range 15) 118 | -11/Scrapyard | Entered Materials 119 | -10/Materials | Met a group of wandering Federalists 302 | -10/Materials | Build established: Mutant 353 | -10/Materials | Discovered new exit (range 7) 702 | -10/Materials | Discovered new exit (range 13) 1121 | -10/Materials | Discovered new exit (range 13) 1122 | -10/Materials | Core integrity fell below 50% 1169 | -10/Materials | Entered Mines 1189 | -10/Mines | Met a Derelict bent on vengeance 1223 | -10/Mines | Learned Materials interactive machine intel 1339 | -10/Mines | Deemed a non-threat by the Exiles lab entrance 1340 | -10/Mines | Discovered new exit (range 5) 1342 | -10/Mines | Discovered new exit (range 6) 1352 | -10/Mines | Identified exit to Exiles 1354 | -10/Mines | Identified exit to Materials 1524 | -10/Mines | Discovered exit to Materials (range 11) 1594 | -10/Mines | Excavation squad dispatched 1594 | -10/Mines | A large section of the Mines collapsed 1672 | -10/Mines | Core integrity fell below 20% 1979 | -10/Mines | Discovered new exit (range 10) 1989 | -10/Mines | Identified exit to Subcaves 2034 | -10/Mines | Entered Subcaves 2073 | -10/Subcaves | Discovered new exit (range 5) 2080 | -10/Subcaves | Identified exit to Materials 2161 | -10/Subcaves | Shifting Twisted Machinery released Mak. Axe 2165 | -10/Subcaves | Shifting Twisted Machinery released Sub. Machine Gun 2194 | -10/Subcaves | Shifting Twisted Machinery released Flamer 2204 | -10/Subcaves | Shifting Twisted Machinery released Sub. Laser 2221 | -10/Subcaves | A swath of the cavern ceiling suddenly collapsed 2233 | -10/Subcaves | Build established: Scavenger-Mutant 2486 | -10/Subcaves | Ambushed by Subdwellers from Twisted Machinery 2509 | -10/Subcaves | Destroyed by NT-5HC(R) with Subdweller Machine Gun Last Messages --------------- 02351_ Found Sub. Monowheel. 02351_ Found Humpback. 02351_ Found 66 Matter. 02357_ Subatomizers dissect the Sub. Monowheel. 02358_ Mni. Grenade Launcher destroyed. 02358_ Destroyed Mni. Grenade Launcher. 02363_ 3P-U23(R) destroyed. 02371_ Searching scrap... 02371_ Found Battle Cannon. 02371_ Found Sub. Beam Cannon. 02371_ Found 52 Matter. 02372_ Acquired 17 matter. 02372_ Subatomizers dissect the Humpback. 02374_ Searching scrap... 02374_ Found Mak. Shrapnel Gun. 02374_ Found 44 Matter. 02377_ The unstable cave ceiling collapses. 02386_ Subatomizers dissect the Humpback. 02486_ W7-4JD(R) emerges from the Twisted Machinery. Map ----- +----------------------------------------------------+ | | | | | | | ?????????????????????????????????????????????????? | | ?????????????????????????????????????????????????? | | ?????????????????????????????????????????????????? | | ?????????????????????????????????????????????????? | | ?????????????????????????????????????????????????? | | ?????????????????????????????????????????????????? | | ?????????????????????????????????????????????????? | | ?????????????????????????????????????????????????? | | ?????????????????????????????????????????????????? | | ?????????????????????????????????????????????????? | | ?????????????????????????????????????????????????? | | ?????????????????????????????????????????????????? | | ?????????????????????????????????????????????????? | | ?????????????????????????????????????????????????? | | ?????????????????????????????????????????????????? | | ?????????????????????????????????????????????????? | | ??????????????????????????????????????????????#### | | ?????????????????###########????????????????### | | ?????????????????# #????????????????# | | ?????????????????# #????????????????# # | | ????????????###### ##???????????????## # | | ????????? ##??????????????## # | | ????????? @ #??????????????# # | | ????????? #### #??????????????# # | | ???????????????????????## #??????????????# # | | ???????##???????????????# ##??##?###??????# ## | | ??????? "?????????????##R #### #?# ###???## #? | | ??????? ""???????????##R ### ### ##### ## | | ?????? "" #??????????# ## ## ## | | ????? "" #????????## #?# | | ??# "" ##????### #?# ## | | ??? #?### #?##?## ## | | ?? " ## ##???### ###### | | ??????# #### ##??## #### | | ???????# ### ##??# ##?# ## ## | | ??????????????# ###???## ## #?# ## | | ??????????????####??????##### ##?## ## | | ????????????????????????????# ###?## ### | | ???????????????????????????## ######?# ## | | ???????????????????????????# #?## ### | | ???????????????????????????## #### ## # | | ????????????????????????????#### ### #### | | ???????????????????????????????#### #??? | | ??????????????????????????????????## ##?? | | ???????????????????????????????????#### ### | | ??????????????????????????????????????# | | ??????????????????????????????????????# | +----------------------------------------------------+ Best States ------------- Heat Dissipation 25 Energy Generation 12 Energy Capacity 265 Matter Stores 300 Matter Capacity 300 Sight Range 16 Robot Scan Range 14 Terrain Scan Range 16 Terrain Scan Density 10 Evasion (%) 55 Item Schematics ----------------- None Robot Schematics ------------------ None Fabricated ------------ Nothing Repaired ---------- Nothing Alien Tech Used ----------------- None Achievements -------------- None Challenges ------------ None Game ------ Seed EnhancedBeamTearclaws Manual? 0 Play Time 00:19:27 Cumulative 200.9 hours Start 2025.06.03 @ 01:02:07 End 2025.06.03 @ 01:36:18 Sessions 1 Manual Loads 0 Difficulty Rogue Special Mode None Game No. 189 Rogue 189 Adventurer 0 Explorer 0 Win Type - Total 1 Types 1/0/0/0/0/0/0/0/0/0 Lore% 42 Gallery% 57 Achievement% 46 Wizard Run 0 Options --------- Layout 2 ASCII 1 Keyboard 1 Movement Numpad Keybinds 0 Fullscreen 2 Font 32/TamsynBold Map View 50x44 Zoom Use 0% Tactical HUD 1 Map Filters NONE Filters NONE Steam 1 RUN: 48a86daa-4617-4303-b83f-90b5a19e525e